[Event "Titled Tuesday Blitz July 4 Late 2023"]
[White "Vlassov, Nikolai"]
[Black "Deng, Henry"]
[WhiteFideId "4103360"]
[BlackFideId "30965454"]
[WhiteElo "2563"]
[BlackElo "2491"]
[Result "1-0"]
[Round "11"]
[TimeControl "180+2"]
[Date "2023.07.04"]
[WhiteClock "0:00:14"]
[BlackClock "0:00:00"]
[Board "49"]

1. e4 {[%clk 0:03:00]}  c5 {[%clk 0:02:58]} 2. c3 {[%clk 0:03:00]}  Nf6 {[%clk 0:02:57]} 3. e5 {[%clk 0:03:01]}  Nd5 {[%clk 0:02:58]} 4. d4 {[%clk 0:03:01]}  cxd4 {[%clk 0:02:58]} 5. cxd4 {[%clk 0:03:01]}  d6 {[%clk 0:02:58]} 6. Bc4 {[%clk 0:03:01]}  Nb6 {[%clk 0:02:51]} 7. Bb3 {[%clk 0:03:01]}  dxe5 {[%clk 0:02:49]} 8. Qh5 {[%clk 0:03:01]}  e6 {[%clk 0:02:45]} 9. dxe5 {[%clk 0:03:01]}  Nc6 {[%clk 0:02:42]} 10. Nc3 {[%clk 0:03:00]}  Nd4 {[%clk 0:02:37]} 11. Nf3 {[%clk 0:02:58]}  Nxb3 {[%clk 0:02:37]} 12. axb3 {[%clk 0:02:58]}  Be7 {[%clk 0:02:32]} 13. Bg5 {[%clk 0:02:54]}  O-O {[%clk 0:02:29]} 14. Rd1 {[%clk 0:02:49]}  Qc7 {[%clk 0:02:29]} 15. h4 {[%clk 0:02:21]}  Bb4 {[%clk 0:02:22]} 16. Bd2 {[%clk 0:01:51]}  Bd7 {[%clk 0:02:17]} 17. Rh3 {[%clk 0:01:26]}  Bxc3 {[%clk 0:01:52]} 18. bxc3 {[%clk 0:01:24]}  Bc6 {[%clk 0:01:44]} 19. Bf4 {[%clk 0:00:55]}  Nd5 {[%clk 0:01:42]} 20. Bd2 {[%clk 0:00:47]}  Ne7 {[%clk 0:01:33]} 21. Qg5 {[%clk 0:00:33]}  Be4 {[%clk 0:01:24]} 22. h5 {[%clk 0:00:30]}  h6 {[%clk 0:01:24]} 23. Qf4 {[%clk 0:00:29]}  Bf5 {[%clk 0:00:57]} 24. Rg3 {[%clk 0:00:29]}  Kh8 {[%clk 0:00:57]} 25. Rxg7 {[%clk 0:00:24]}  Kxg7 {[%clk 0:00:56]} 26. Qxh6+ {[%clk 0:00:23]}  Kg8 {[%clk 0:00:54]} 27. Qg5+ {[%clk 0:00:22]}  Kh7 {[%clk 0:00:45]} 28. Qh6+ {[%clk 0:00:20]}  Kg8 {[%clk 0:00:45]} 29. Bg5 {[%clk 0:00:16]}  Qxc3+ {[%clk 0:00:21]} 30. Kf1 {[%clk 0:00:16]}  Bd3+ {[%clk 0:00:22]} 31. Kg1 {[%clk 0:00:16]}  Nf5 {[%clk 0:00:22]} 32. Qf6 {[%clk 0:00:16]}  Qc2 {[%clk 0:00:17]} 33. Rd2 {[%clk 0:00:15]}  Qb1+ {[%clk 0:00:16]} 34. Kh2 {[%clk 0:00:15]}  Be4 {[%clk 0:00:00]} 35. Nh4 {[%clk 0:00:14]} 1-0


[Site "https://www.chess.com"]

[Event "Titled Tuesday Blitz July 4 Late 2023"]
[White "Philippe, Guillaume"]
[Black "Bruedigam, Martin"]
[WhiteFideId "36048763"]
[BlackFideId "24608033"]
[WhiteElo "2479"]
[BlackElo "2554"]
[Result "0-1"]
[Round "11"]
[TimeControl "180+2"]
[Date "2023.07.04"]
[WhiteClock "0:00:20"]
[BlackClock "0:01:11"]
[Board "52"]

1. e4 {[%clk 0:03:00]}  e5 {[%clk 0:02:59]} 2. Nf3 {[%clk 0:03:01]}  Nc6 {[%clk 0:02:59]} 3. Bb5 {[%clk 0:03:01]}  a6 {[%clk 0:02:59]} 4. Ba4 {[%clk 0:03:02]}  Nf6 {[%clk 0:02:59]} 5. Nc3 {[%clk 0:03:02]}  Bd6 {[%clk 0:02:50]} 6. d3 {[%clk 0:02:50]}  O-O {[%clk 0:02:48]} 7. a3 {[%clk 0:02:46]}  Re8 {[%clk 0:02:47]} 8. g4 {[%clk 0:02:42]}  Bc5 {[%clk 0:02:45]} 9. Rg1 {[%clk 0:02:34]}  Nd4 {[%clk 0:02:39]} 10. g5 {[%clk 0:02:28]}  b5 {[%clk 0:02:25]} 11. gxf6 {[%clk 0:02:27]}  Qxf6 {[%clk 0:02:24]} 12. Nxd4 {[%clk 0:01:44]}  Bxd4 {[%clk 0:02:25]} 13. Qe2 {[%clk 0:01:41]}  Bxc3+ {[%clk 0:02:13]} 14. bxc3 {[%clk 0:01:42]}  bxa4 {[%clk 0:02:13]} 15. Bg5 {[%clk 0:01:42]}  Qc6 {[%clk 0:02:10]} 16. Kd2 {[%clk 0:01:37]}  Rb8 {[%clk 0:02:08]} 17. Qe3 {[%clk 0:01:13]}  Re6 {[%clk 0:01:58]} 18. Rg3 {[%clk 0:01:08]}  d5 {[%clk 0:01:56]} 19. exd5 {[%clk 0:01:06]}  Qxd5 {[%clk 0:01:57]} 20. Bh6 {[%clk 0:01:04]}  Rg6 {[%clk 0:01:56]} 21. Rxg6 {[%clk 0:01:04]}  hxg6 {[%clk 0:01:56]} 22. Bg5 {[%clk 0:01:04]}  f6 {[%clk 0:01:52]} 23. Bh4 {[%clk 0:01:04]}  Bf5 {[%clk 0:01:49]} 24. Bg3 {[%clk 0:01:02]}  Rb2 {[%clk 0:01:48]} 25. Kc1 {[%clk 0:00:56]}  Rxc2+ {[%clk 0:01:31]} 26. Kxc2 {[%clk 0:00:52]}  Qb3+ {[%clk 0:01:31]} 27. Kc1 {[%clk 0:00:50]}  Qxc3+ {[%clk 0:01:31]} 28. Kd1 {[%clk 0:00:47]}  Qxa1+ {[%clk 0:01:29]} 29. Ke2 {[%clk 0:00:48]}  Qxa3 {[%clk 0:01:28]} 30. f4 {[%clk 0:00:42]}  Qb2+ {[%clk 0:01:23]} 31. Kf3 {[%clk 0:00:41]}  Qb7+ {[%clk 0:01:22]} 32. Kf2 {[%clk 0:00:40]}  exf4 {[%clk 0:01:17]} 33. Bxf4 {[%clk 0:00:39]}  a3 {[%clk 0:01:15]} 34. Qe8+ {[%clk 0:00:29]}  Kh7 {[%clk 0:01:15]} 35. Qa4 {[%clk 0:00:30]}  Qb2+ {[%clk 0:01:12]} 36. Kg3 {[%clk 0:00:20]}  a2 {[%clk 0:01:11]} 0-1


[Site "https://www.chess.com"]

[Event "Titled Tuesday Blitz July 4 Late 2023"]
[White "Sadovsky, Artem"]
[Black "Romero Arzuaga, Yudel"]
[WhiteFideId "4155840"]
[BlackFideId "3521010"]
[WhiteElo "2542"]
[BlackElo "2398"]
[Result "1-0"]
[Round "11"]
[TimeControl "180+2"]
[Date "2023.07.04"]
[WhiteClock "0:01:48"]
[BlackClock "0:01:46"]
[Board "53"]

1. Nf3 {[%clk 0:03:00]}  d5 {[%clk 0:02:58]} 2. e3 {[%clk 0:02:59]}  c6 {[%clk 0:02:57]} 3. c4 {[%clk 0:02:59]}  Nf6 {[%clk 0:02:55]} 4. b3 {[%clk 0:02:59]}  Bg4 {[%clk 0:02:55]} 5. Bb2 {[%clk 0:02:54]}  e6 {[%clk 0:02:55]} 6. Be2 {[%clk 0:02:54]}  Nbd7 {[%clk 0:02:55]} 7. O-O {[%clk 0:02:54]}  Bd6 {[%clk 0:02:54]} 8. d3 {[%clk 0:02:54]}  h5 {[%clk 0:02:53]} 9. Nbd2 {[%clk 0:02:54]}  Qc7 {[%clk 0:02:49]} 10. Qc2 {[%clk 0:02:52]}  Ne5 {[%clk 0:02:47]} 11. c5 {[%clk 0:02:45]}  Nxf3+ {[%clk 0:02:44]} 12. gxf3 {[%clk 0:02:45]}  Bxh2+ {[%clk 0:02:44]} 13. Kg2 {[%clk 0:02:42]}  Bf5 {[%clk 0:02:13]} 14. f4 {[%clk 0:02:39]}  Bxf4 {[%clk 0:02:10]} 15. exf4 {[%clk 0:02:40]}  Qxf4 {[%clk 0:02:10]} 16. Nf3 {[%clk 0:02:07]}  Qg4+ {[%clk 0:02:03]} 17. Kh1 {[%clk 0:02:07]}  Qh3+ {[%clk 0:02:02]} 18. Nh2 {[%clk 0:02:08]}  Ng4 {[%clk 0:02:00]} 19. Bxg4 {[%clk 0:02:08]}  hxg4 {[%clk 0:01:57]} 20. Be5 {[%clk 0:02:09]}  Bxd3 {[%clk 0:01:53]} 21. Qc3 {[%clk 0:01:55]}  Qf3+ {[%clk 0:01:51]} 22. Kg1 {[%clk 0:01:53]}  Rxh2 {[%clk 0:01:50]} 23. Bxh2 {[%clk 0:01:53]}  O-O-O {[%clk 0:01:48]} 24. Qe5 {[%clk 0:01:50]}  Be4 {[%clk 0:01:46]} 25. Qc7# {[%clk 0:01:48]} 1-0


[Site "https://www.chess.com"]

[Event "Titled Tuesday Blitz July 4 Late 2023"]
[White "Howell, David W L"]
[Black "Urbina Perez, Juan Antonio"]
[WhiteFideId "410608"]
[BlackFideId "2217368"]
[WhiteElo "2998"]
[BlackElo "2425"]
[Result "1/2-1/2"]
[Round "11"]
[TimeControl "180+2"]
[Date "2023.07.04"]
[WhiteClock "0:00:04"]
[BlackClock "0:00:20"]
[Board "54"]

1. c4 {[%clk 0:03:00]}  c6 {[%clk 0:02:58]} 2. e4 {[%clk 0:02:52]}  d5 {[%clk 0:02:59]} 3. exd5 {[%clk 0:02:48]}  cxd5 {[%clk 0:02:59]} 4. d4 {[%clk 0:02:48]}  Nf6 {[%clk 0:02:59]} 5. Nc3 {[%clk 0:02:49]}  g6 {[%clk 0:02:58]} 6. Qb3 {[%clk 0:02:40]}  Bg7 {[%clk 0:02:54]} 7. cxd5 {[%clk 0:02:40]}  O-O {[%clk 0:02:54]} 8. Nge2 {[%clk 0:02:32]}  Nbd7 {[%clk 0:02:35]} 9. Nf4 {[%clk 0:02:26]}  Nb6 {[%clk 0:02:35]} 10. Be2 {[%clk 0:02:18]}  Bf5 {[%clk 0:02:30]} 11. O-O {[%clk 0:02:15]}  h6 {[%clk 0:02:20]} 12. Re1 {[%clk 0:01:41]}  Qd7 {[%clk 0:02:09]} 13. a4 {[%clk 0:01:29]}  Rad8 {[%clk 0:02:05]} 14. Bf3 {[%clk 0:01:18]}  g5 {[%clk 0:02:04]} 15. a5 {[%clk 0:01:17]}  Na8 {[%clk 0:01:59]} 16. Nh5 {[%clk 0:01:13]}  Nxh5 {[%clk 0:01:59]} 17. Bxh5 {[%clk 0:01:13]}  Nc7 {[%clk 0:01:58]} 18. Qxb7 {[%clk 0:01:05]}  Bxd4 {[%clk 0:01:46]} 19. Be3 {[%clk 0:00:51]}  Bf6 {[%clk 0:01:39]} 20. Bxa7 {[%clk 0:00:18]}  Nxd5 {[%clk 0:01:36]} 21. Qxd5 {[%clk 0:00:18]}  Qxd5 {[%clk 0:01:37]} 22. Nxd5 {[%clk 0:00:19]}  Rxd5 {[%clk 0:01:38]} 23. a6 {[%clk 0:00:16]}  Bxb2 {[%clk 0:01:24]} 24. Ra2 {[%clk 0:00:16]}  Bc3 {[%clk 0:01:21]} 25. Rc1 {[%clk 0:00:16]}  Rfd8 {[%clk 0:01:18]} 26. h3 {[%clk 0:00:11]}  Be5 {[%clk 0:01:14]} 27. Be3 {[%clk 0:00:11]}  g4 {[%clk 0:01:13]} 28. g3 {[%clk 0:00:04]}  Rd1+ {[%clk 0:01:07]} 29. Rxd1 {[%clk 0:00:04]}  Rxd1+ {[%clk 0:01:08]} 30. Kh2 {[%clk 0:00:05]}  Be4 {[%clk 0:01:08]} 31. f3 {[%clk 0:00:02]}  gxf3 {[%clk 0:01:00]} 32. Bf2 {[%clk 0:00:02]}  Bd4 {[%clk 0:00:55]} 33. a7 {[%clk 0:00:02]}  Bxf2 {[%clk 0:00:42]} 34. Rxf2 {[%clk 0:00:03]}  Ra1 {[%clk 0:00:38]} 35. Bxf3 {[%clk 0:00:03]}  Bxf3 {[%clk 0:00:38]} 36. Rxf3 {[%clk 0:00:04]}  Rxa7 {[%clk 0:00:38]} 37. g4 {[%clk 0:00:05]}  Ra4 {[%clk 0:00:36]} 38. Rf5 {[%clk 0:00:04]}  Kg7 {[%clk 0:00:36]} 39. Rb5 {[%clk 0:00:05]}  e6 {[%clk 0:00:36]} 40. Kg3 {[%clk 0:00:05]}  Ra3+ {[%clk 0:00:37]} 41. Kg2 {[%clk 0:00:06]}  Kg6 {[%clk 0:00:37]} 42. Rb8 {[%clk 0:00:06]}  f6 {[%clk 0:00:36]} 43. Rb5 {[%clk 0:00:05]}  Rd3 {[%clk 0:00:34]} 44. Rb7 {[%clk 0:00:05]}  h5 {[%clk 0:00:33]} 45. Re7 {[%clk 0:00:05]}  hxg4 {[%clk 0:00:32]} 46. hxg4 {[%clk 0:00:04]}  Re3 {[%clk 0:00:29]} 47. Kf2 {[%clk 0:00:04]}  Re5 {[%clk 0:00:29]} 48. Kf3 {[%clk 0:00:04]}  Re1 {[%clk 0:00:26]} 49. Kf2 {[%clk 0:00:05]}  Re5 {[%clk 0:00:22]} 50. Kf3 {[%clk 0:00:05]}  Kh6 {[%clk 0:00:23]} 51. Rf7 {[%clk 0:00:04]}  Kg6 {[%clk 0:00:20]} 52. Re7 {[%clk 0:00:04]} 1/2-1/2


[Site "https://www.chess.com"]

[Event "Titled Tuesday Blitz July 4 Late 2023"]
[White "benny_aizenberg"]
[Black "Balla, Tamas-Kristof"]
[BlackFideId "1208497"]
[WhiteElo "2642"]
[BlackElo "2462"]
[Result "1-0"]
[Round "11"]
[TimeControl "180+2"]
[Date "2023.07.04"]
[WhiteClock "0:00:55"]
[BlackClock "0:00:11"]
[Board "55"]

1. g4 {[%clk 0:03:00]}  d5 {[%clk 0:02:56]} 2. g5 {[%clk 0:03:01]}  e5 {[%clk 0:02:50]} 3. h4 {[%clk 0:03:01]}  h6 {[%clk 0:02:47]} 4. g6 {[%clk 0:03:01]}  fxg6 {[%clk 0:02:46]} 5. d4 {[%clk 0:03:02]}  e4 {[%clk 0:02:46]} 6. c4 {[%clk 0:03:01]}  c6 {[%clk 0:02:45]} 7. Nc3 {[%clk 0:03:02]}  Nf6 {[%clk 0:02:45]} 8. Nh3 {[%clk 0:03:02]}  Bf5 {[%clk 0:02:40]} 9. Nf4 {[%clk 0:03:01]}  Bd6 {[%clk 0:02:30]} 10. cxd5 {[%clk 0:03:01]}  cxd5 {[%clk 0:02:31]} 11. Nfxd5 {[%clk 0:03:01]}  Nxd5 {[%clk 0:02:21]} 12. Nxd5 {[%clk 0:03:01]}  O-O {[%clk 0:02:20]} 13. Nc3 {[%clk 0:02:43]}  Nc6 {[%clk 0:02:18]} 14. Be3 {[%clk 0:02:43]}  Kh8 {[%clk 0:02:12]} 15. Qd2 {[%clk 0:02:36]}  a6 {[%clk 0:02:08]} 16. O-O-O {[%clk 0:02:35]}  b5 {[%clk 0:02:04]} 17. Bh3 {[%clk 0:02:34]}  b4 {[%clk 0:02:04]} 18. Na4 {[%clk 0:02:32]}  Qa5 {[%clk 0:02:02]} 19. b3 {[%clk 0:02:31]}  Rac8 {[%clk 0:01:57]} 20. Kb1 {[%clk 0:02:31]}  Ne7 {[%clk 0:01:46]} 21. d5 {[%clk 0:02:20]}  Bxh3 {[%clk 0:01:36]} 22. Rxh3 {[%clk 0:02:18]}  Rfd8 {[%clk 0:01:35]} 23. Bb6 {[%clk 0:02:08]}  Qb5 {[%clk 0:01:31]} 24. Bxd8 {[%clk 0:02:08]}  Rxd8 {[%clk 0:01:32]} 25. Qc2 {[%clk 0:01:17]}  Nxd5 {[%clk 0:01:12]} 26. Qxe4 {[%clk 0:01:16]}  Be7 {[%clk 0:00:36]} 27. Rhd3 {[%clk 0:01:14]}  Bf6 {[%clk 0:00:25]} 28. Rxd5 {[%clk 0:01:13]}  Rxd5 {[%clk 0:00:25]} 29. Rxd5 {[%clk 0:01:10]}  Qb8 {[%clk 0:00:20]} 30. Nc5 {[%clk 0:01:08]}  Qh2 {[%clk 0:00:19]} 31. Rd1 {[%clk 0:01:07]}  Qxf2 {[%clk 0:00:19]} 32. Nd7 {[%clk 0:01:05]}  Bc3 {[%clk 0:00:18]} 33. Ne5 {[%clk 0:01:01]}  Qf6 {[%clk 0:00:15]} 34. Nxg6+ {[%clk 0:00:57]}  Kg8 {[%clk 0:00:11]} 35. h5 {[%clk 0:00:55]} 1-0


[Site "https://www.chess.com"]

[Event "Titled Tuesday Blitz July 4 Late 2023"]
[White "Castella Garcia, Fausto"]
[Black "Zavgorodniy, Sergiy"]
[WhiteFideId "3501922"]
[BlackFideId "14110148"]
[WhiteElo "2425"]
[BlackElo "2586"]
[Result "0-1"]
[Round "11"]
[TimeControl "180+2"]
[Date "2023.07.04"]
[WhiteClock "0:00:00"]
[BlackClock "0:01:10"]
[Board "57"]

1. e4 {[%clk 0:03:00]}  c6 {[%clk 0:03:00]} 2. Nc3 {[%clk 0:02:59]}  d5 {[%clk 0:03:01]} 3. Nf3 {[%clk 0:02:59]}  Bg4 {[%clk 0:03:00]} 4. h3 {[%clk 0:02:59]}  Bxf3 {[%clk 0:03:01]} 5. Qxf3 {[%clk 0:02:59]}  dxe4 {[%clk 0:03:01]} 6. Nxe4 {[%clk 0:02:58]}  Nd7 {[%clk 0:03:02]} 7. d4 {[%clk 0:02:58]}  Ngf6 {[%clk 0:03:02]} 8. Bd3 {[%clk 0:02:58]}  Nxe4 {[%clk 0:03:02]} 9. Qxe4 {[%clk 0:02:58]}  Nf6 {[%clk 0:03:03]} 10. Qh4 {[%clk 0:02:58]}  e6 {[%clk 0:03:04]} 11. O-O {[%clk 0:02:58]}  Be7 {[%clk 0:03:04]} 12. Bg5 {[%clk 0:02:58]}  h6 {[%clk 0:03:03]} 13. c3 {[%clk 0:02:58]}  O-O {[%clk 0:03:03]} 14. Be3 {[%clk 0:02:54]}  Nd5 {[%clk 0:03:01]} 15. Qe4 {[%clk 0:02:54]}  Nf6 {[%clk 0:03:01]} 16. Qf3 {[%clk 0:02:53]}  Qc7 {[%clk 0:02:58]} 17. Rad1 {[%clk 0:02:45]}  Rfd8 {[%clk 0:02:55]} 18. Rfe1 {[%clk 0:02:38]}  Rd7 {[%clk 0:02:55]} 19. Bf4 {[%clk 0:02:38]}  Qb6 {[%clk 0:02:55]} 20. Be5 {[%clk 0:02:32]}  Rad8 {[%clk 0:02:55]} 21. g4 {[%clk 0:02:20]}  c5 {[%clk 0:02:54]} 22. h4 {[%clk 0:02:18]}  cxd4 {[%clk 0:02:52]} 23. Bxd4 {[%clk 0:02:17]}  Qxb2 {[%clk 0:02:29]} 24. g5 {[%clk 0:02:12]}  hxg5 {[%clk 0:02:30]} 25. hxg5 {[%clk 0:02:12]}  Nd5 {[%clk 0:02:30]} 26. Qh5 {[%clk 0:02:07]}  f5 {[%clk 0:02:19]} 27. Rxe6 {[%clk 0:01:58]}  Nf4 {[%clk 0:02:09]} 28. Bc4 {[%clk 0:01:23]}  Nxh5 {[%clk 0:02:01]} 29. Re2+ {[%clk 0:01:22]}  Kh7 {[%clk 0:01:56]} 30. Rxb2 {[%clk 0:01:22]}  Kg6 {[%clk 0:01:48]} 31. Rb5 {[%clk 0:01:14]}  a6 {[%clk 0:01:46]} 32. Re5 {[%clk 0:00:54]}  Nf4 {[%clk 0:01:41]} 33. Rde1 {[%clk 0:00:39]}  Bd6 {[%clk 0:01:35]} 34. R5e3 {[%clk 0:00:32]}  b5 {[%clk 0:01:30]} 35. Bb3 {[%clk 0:00:27]}  Kxg5 {[%clk 0:01:28]} 36. Rg3+ {[%clk 0:00:25]}  Kh6 {[%clk 0:01:28]} 37. Rf3 {[%clk 0:00:18]}  g5 {[%clk 0:01:26]} 38. Be5 {[%clk 0:00:12]}  Re7 {[%clk 0:01:23]} 39. Rxf4 {[%clk 0:00:11]}  gxf4 {[%clk 0:01:14]} 40. Bxf4+ {[%clk 0:00:10]}  Kg6 {[%clk 0:01:14]} 41. Rd1 {[%clk 0:00:00]}  Bc7 {[%clk 0:01:10]} 0-1


[Site "https://www.chess.com"]

[Event "Titled Tuesday Blitz July 4 Late 2023"]
[White "Mikhalsky, Vladimir"]
[Black "Ambartsumova, Karina"]
[WhiteFideId "14144352"]
[BlackFideId "4166299"]
[WhiteElo "2422"]
[BlackElo "2537"]
[Result "0-1"]
[Round "11"]
[TimeControl "180+2"]
[Date "2023.07.04"]
[WhiteClock "0:00:02"]
[BlackClock "0:00:20"]
[Board "59"]

1. d4 {[%clk 0:02:57]}  Nf6 {[%clk 0:03:00]} 2. c4 {[%clk 0:02:57]}  e6 {[%clk 0:03:00]} 3. g3 {[%clk 0:02:56]}  c5 {[%clk 0:02:59]} 4. d5 {[%clk 0:02:56]}  exd5 {[%clk 0:03:00]} 5. cxd5 {[%clk 0:02:55]}  Bd6 {[%clk 0:03:01]} 6. Nc3 {[%clk 0:02:54]}  O-O {[%clk 0:03:02]} 7. Bg2 {[%clk 0:02:54]}  a6 {[%clk 0:03:01]} 8. a4 {[%clk 0:02:53]}  Bc7 {[%clk 0:02:58]} 9. d6 {[%clk 0:02:52]}  Ba5 {[%clk 0:02:58]} 10. Nh3 {[%clk 0:02:46]}  Nc6 {[%clk 0:02:53]} 11. O-O {[%clk 0:02:45]}  Re8 {[%clk 0:02:44]} 12. Nf4 {[%clk 0:02:42]}  Rb8 {[%clk 0:02:35]} 13. Be3 {[%clk 0:02:15]}  b6 {[%clk 0:02:17]} 14. Nfd5 {[%clk 0:02:12]}  Nxd5 {[%clk 0:02:07]} 15. Nxd5 {[%clk 0:02:12]}  Bb7 {[%clk 0:02:08]} 16. Qc1 {[%clk 0:02:04]}  Re6 {[%clk 0:01:53]} 17. Bg5 {[%clk 0:01:52]}  f6 {[%clk 0:01:44]} 18. Bf4 {[%clk 0:01:49]}  Nd4 {[%clk 0:01:33]} 19. Qc4 {[%clk 0:01:24]}  Nxe2+ {[%clk 0:01:20]} 20. Kh1 {[%clk 0:01:23]}  Kh8 {[%clk 0:01:20]} 21. Ra3 {[%clk 0:01:08]}  Nxf4 {[%clk 0:00:52]} 22. Qxf4 {[%clk 0:01:07]}  Re5 {[%clk 0:00:46]} 23. Nc7 {[%clk 0:01:05]}  Bxg2+ {[%clk 0:00:44]} 24. Kxg2 {[%clk 0:01:04]}  Qc8 {[%clk 0:00:36]} 25. Re3 {[%clk 0:01:04]}  Qb7+ {[%clk 0:00:36]} 26. Kh3 {[%clk 0:01:02]}  Bd2 {[%clk 0:00:34]} 27. g4 {[%clk 0:00:44]}  Bxe3 {[%clk 0:00:34]} 28. fxe3 {[%clk 0:00:45]}  Qe4 {[%clk 0:00:33]} 29. Nxa6 {[%clk 0:00:42]}  Qxe3+ {[%clk 0:00:33]} 30. Qxe3 {[%clk 0:00:41]}  Rxe3+ {[%clk 0:00:34]} 31. Kg2 {[%clk 0:00:40]}  Ra8 {[%clk 0:00:34]} 32. Nc7 {[%clk 0:00:40]}  Rxa4 {[%clk 0:00:34]} 33. g5 {[%clk 0:00:40]}  Re2+ {[%clk 0:00:27]} 34. Kf3 {[%clk 0:00:40]}  Rxb2 {[%clk 0:00:25]} 35. gxf6 {[%clk 0:00:40]}  gxf6 {[%clk 0:00:26]} 36. Ke3 {[%clk 0:00:40]}  Rb3+ {[%clk 0:00:25]} 37. Kd2 {[%clk 0:00:38]}  Ra2+ {[%clk 0:00:25]} 38. Kc1 {[%clk 0:00:38]}  Ra1+ {[%clk 0:00:26]} 39. Kc2 {[%clk 0:00:38]}  Rxf1 {[%clk 0:00:26]} 40. Kxb3 {[%clk 0:00:39]}  f5 {[%clk 0:00:24]} 41. Nd5 {[%clk 0:00:39]}  Rd1 {[%clk 0:00:22]} 42. Nxb6 {[%clk 0:00:39]}  Rxd6 {[%clk 0:00:21]} 43. Nc8 {[%clk 0:00:39]}  Rd3+ {[%clk 0:00:21]} 44. Kc4 {[%clk 0:00:38]}  Rh3 {[%clk 0:00:21]} 45. Kxc5 {[%clk 0:00:38]}  f4 {[%clk 0:00:22]} 46. Kd4 {[%clk 0:00:38]}  Rxh2 {[%clk 0:00:20]} 47. Ke4 {[%clk 0:00:37]}  Rf2 {[%clk 0:00:20]} 48. Nd6 {[%clk 0:00:37]}  Kg7 {[%clk 0:00:20]} 49. Nf5+ {[%clk 0:00:37]}  Kf6 {[%clk 0:00:20]} 50. Nd6 {[%clk 0:00:35]}  h5 {[%clk 0:00:20]} 51. Ne8+ {[%clk 0:00:33]}  Kg5 {[%clk 0:00:20]} 52. Nd6 {[%clk 0:00:31]}  Kg4 {[%clk 0:00:20]} 53. Nf7 {[%clk 0:00:31]}  h4 {[%clk 0:00:20]} 54. Ne5+ {[%clk 0:00:31]}  Kg3 {[%clk 0:00:20]} 55. Nd3 {[%clk 0:00:31]}  h3 {[%clk 0:00:18]} 56. Nxf2 {[%clk 0:00:10]}  Kxf2 {[%clk 0:00:19]} 57. Kf5 {[%clk 0:00:10]}  h2 {[%clk 0:00:19]} 58. Kf6 {[%clk 0:00:02]}  h1=Q {[%clk 0:00:20]} 0-1


[Site "https://www.chess.com"]

[Event "Titled Tuesday Blitz July 4 Late 2023"]
[White "Kanyamarala, Trisha"]
[Black "lagarto93"]
[WhiteFideId "45004722"]
[WhiteElo "2393"]
[BlackElo "2491"]
[Result "1-0"]
[Round "11"]
[TimeControl "180+2"]
[Date "2023.07.04"]
[WhiteClock "0:01:07"]
[BlackClock "0:00:56"]
[Board "63"]

1. c4 {[%clk 0:03:00]}  e5 {[%clk 0:02:59]} 2. Nc3 {[%clk 0:03:00]}  Nf6 {[%clk 0:02:59]} 3. g3 {[%clk 0:03:00]}  Bb4 {[%clk 0:02:57]} 4. Bg2 {[%clk 0:03:00]}  O-O {[%clk 0:02:58]} 5. e4 {[%clk 0:02:59]}  d6 {[%clk 0:02:52]} 6. Nge2 {[%clk 0:02:59]}  Be6 {[%clk 0:02:49]} 7. d3 {[%clk 0:02:56]}  c6 {[%clk 0:02:49]} 8. O-O {[%clk 0:02:56]}  Nbd7 {[%clk 0:02:48]} 9. f4 {[%clk 0:02:55]}  Bg4 {[%clk 0:02:47]} 10. Be3 {[%clk 0:02:49]}  Re8 {[%clk 0:02:31]} 11. f5 {[%clk 0:02:49]}  Bc5 {[%clk 0:02:23]} 12. Qd2 {[%clk 0:02:47]}  Bxe2 {[%clk 0:02:23]} 13. Qxe2 {[%clk 0:02:46]}  Bxe3+ {[%clk 0:02:18]} 14. Qxe3 {[%clk 0:02:46]}  Qb6 {[%clk 0:02:18]} 15. Qxb6 {[%clk 0:02:40]}  axb6 {[%clk 0:02:14]} 16. h3 {[%clk 0:02:40]}  Nc5 {[%clk 0:02:11]} 17. Rfd1 {[%clk 0:02:39]}  Na4 {[%clk 0:01:53]} 18. Nxa4 {[%clk 0:02:24]}  Rxa4 {[%clk 0:01:54]} 19. a3 {[%clk 0:02:24]}  Kf8 {[%clk 0:01:49]} 20. g4 {[%clk 0:02:22]}  Ke7 {[%clk 0:01:49]} 21. Bf3 {[%clk 0:02:21]}  Nd7 {[%clk 0:01:47]} 22. b3 {[%clk 0:02:13]}  Ra7 {[%clk 0:01:45]} 23. a4 {[%clk 0:02:13]}  c5 {[%clk 0:01:40]} 24. Rdb1 {[%clk 0:02:05]}  Rea8 {[%clk 0:01:36]} 25. Kf2 {[%clk 0:01:53]}  Kd8 {[%clk 0:01:36]} 26. Ke3 {[%clk 0:01:52]}  Kc7 {[%clk 0:01:35]} 27. h4 {[%clk 0:01:51]}  Nb8 {[%clk 0:01:31]} 28. g5 {[%clk 0:01:50]}  Nc6 {[%clk 0:01:31]} 29. h5 {[%clk 0:01:44]}  Nd4 {[%clk 0:01:30]} 30. Ra2 {[%clk 0:01:40]}  Kd7 {[%clk 0:01:26]} 31. Rh2 {[%clk 0:01:34]}  Ke7 {[%clk 0:01:23]} 32. g6 {[%clk 0:01:20]}  hxg6 {[%clk 0:01:21]} 33. hxg6 {[%clk 0:01:20]}  fxg6 {[%clk 0:01:21]} 34. Rh7 {[%clk 0:01:14]}  gxf5 {[%clk 0:01:15]} 35. Rxg7+ {[%clk 0:01:10]}  Kf6 {[%clk 0:01:14]} 36. Rbg1 {[%clk 0:01:08]}  fxe4 {[%clk 0:00:57]} 37. R1g6+ {[%clk 0:01:07]}  Kf5 {[%clk 0:00:56]} 38. Bxe4# {[%clk 0:01:07]} 1-0


[Site "https://www.chess.com"]

[Event "Titled Tuesday Blitz July 4 Late 2023"]
[White "Alahakoon, Isuru"]
[Black "Liu, Casper"]
[WhiteFideId "9900993"]
[BlackFideId "1454153"]
[WhiteElo "2389"]
[BlackElo "2479"]
[Result "0-1"]
[Round "11"]
[TimeControl "180+2"]
[Date "2023.07.04"]
[WhiteClock "0:00:29"]
[BlackClock "0:01:26"]
[Board "64"]

1. Nf3 {[%clk 0:03:00]}  d6 {[%clk 0:02:58]} 2. d4 {[%clk 0:03:00]}  g6 {[%clk 0:02:57]} 3. Bf4 {[%clk 0:02:57]}  Bg7 {[%clk 0:02:58]} 4. Nc3 {[%clk 0:02:57]}  Nf6 {[%clk 0:02:57]} 5. Qd2 {[%clk 0:02:57]}  O-O {[%clk 0:02:55]} 6. O-O-O {[%clk 0:02:57]}  b5 {[%clk 0:02:54]} 7. Nxb5 {[%clk 0:02:50]}  c6 {[%clk 0:02:54]} 8. Nc3 {[%clk 0:02:50]}  Qa5 {[%clk 0:02:54]} 9. Kb1 {[%clk 0:02:48]}  Nbd7 {[%clk 0:02:51]} 10. e4 {[%clk 0:02:46]}  Rb8 {[%clk 0:02:50]} 11. Nd5 {[%clk 0:02:36]}  Qd8 {[%clk 0:02:47]} 12. Nxf6+ {[%clk 0:02:32]}  Nxf6 {[%clk 0:02:48]} 13. Bd3 {[%clk 0:02:27]}  Qb6 {[%clk 0:02:48]} 14. c3 {[%clk 0:02:27]}  Be6 {[%clk 0:02:37]} 15. Ng5 {[%clk 0:02:20]}  Bd7 {[%clk 0:02:36]} 16. h4 {[%clk 0:02:19]}  c5 {[%clk 0:02:32]} 17. h5 {[%clk 0:02:00]}  Nxh5 {[%clk 0:02:31]} 18. Rxh5 {[%clk 0:01:40]}  gxh5 {[%clk 0:02:31]} 19. e5 {[%clk 0:01:41]}  h6 {[%clk 0:01:58]} 20. Nh7 {[%clk 0:01:36]}  dxe5 {[%clk 0:01:34]} 21. Nxf8 {[%clk 0:01:27]}  Ba4 {[%clk 0:01:34]} 22. b3 {[%clk 0:01:06]}  Bxb3 {[%clk 0:01:31]} 23. Nd7 {[%clk 0:00:29]}  Bc2+ {[%clk 0:01:26]} 0-1


[Site "https://www.chess.com"]